fUSD/lending_fUSD_20250314
["ID","MTS","AMOUNT","RATE_DAILY","PERIOD"]
[356123636,1741923038079,-8255.42123722,0.0001,2]
[356123637,1741923038091,-524.71841434,0.0001,2]
[356123638,1741923038102,-513.49700321,0.0001,2]
[356123639,1741923038138,-1913.90787291,0.0001,2]
[356123640,1741923038149,-17634.8498427,0.0001,2]
[356123641,1741923038160,-343.53394244,0.0001,2]
[356123642,1741923038207,-1887.54303387,0.0001,2]
[356123766,1741923040110,-801.81421915,0.0001,2]
[356123767,1741923040166,-2884.84977065,0.0001,2]
[356123768,1741923040178,-2451.1127707,0.0001,2]
[356123769,1741923040224,-2377.51520155,0.0001,2]
[356123770,1741923040235,-706.08351256,0.0001,2]
[356123771,1741923040280,-206584.72701191,0.0001,2]
[356123772,1741923040291,-1359.0,0.0001,2]
[356123773,1741923040337,-14778.4382579,0.0001,2]
[356123774,1741923040352,-2025.87586301,0.0001,2]
[356123775,1741923040402,-367.03000001,0.0001,2]
[356123776,1741923040414,-4821.6798791,0.0001,2]
[356123777,1741923040425,-308.94361421,0.0001,2]
[356123778,1741923040458,-1387.40725909,0.0001,2]
[356123779,1741923040469,-999.5000125,0.0001,2]
[356123780,1741923040480,-2082.375,0.0001,2]
[356123781,1741923040491,-8556.08335061,0.0001,2]
[356123782,1741923040516,-500.24209558,0.0001,2]
[356123785,1741923043334,-488.05395599,9.899e-05,2]
[356123786,1741923043343,-21625.72378452,0.0001,2]
[356123787,1741923043362,-8508.38170162,0.0001,2]
[356123788,1741923043374,-1740.01,0.0001,2]
[356123789,1741923043391,-6171.0,0.0001,2]
[356123790,1741923043402,-615.40926904,0.0001,2]
[356123791,1741923043417,-8436.6,0.0001,2]
[356123792,1741923045139,-5418.13968742,0.0001,2]
[356123793,1741923045151,-476.95478047,0.0001,2]
[356123794,1741923045163,-799.67334116,0.0001,2]
[356123795,1741923045174,-844.70908518,0.0001,2]
[356123796,1741923045184,-620.60000009,0.0001,2]
[356123803,1741923046064,-51995.000003,0.0001,2]
[356123804,1741923046236,-695.4206,0.0001,2]
[356123805,1741923046247,-2234.41498821,0.0001,2]
[356123806,1741923046259,-1809.45183458,0.0001,2]
[356123807,1741923780802,3411.23132692,0.0002,120]
[356123809,1741923871717,-150.0,9.899e-05,2]
[356123815,1741924232218,-150.0,9.899e-05,2]
[356123816,1741924232228,-152.0,9.899e-05,2]
[356123817,1741924232240,-148.0,9.899e-05,2]
[356123818,1741924232250,-150.0,9.899e-05,2]
[356123819,1741924232260,-685.94936565,9.9e-05,2]
[356123820,1741924232280,-384.26,9.9e-05,2]
[356123821,1741924232332,-6805.20901477,9.9e-05,2]
[356123822,1741924232344,-254.89,9.9e-05,2]
[356123823,1741924232392,-4208.01786348,9.9e-05,2]
[356123824,1741924232410,-2413.42761573,9.9e-05,2]
[356123825,1741924232423,-810.18774977,9.9e-05,2]
[356123826,1741924232452,-17890.7213906,9.9e-05,2]
[356123827,1741924232462,-1295.5723,9.9e-05,2]
[356123828,1741924232472,-6307.4234,9.9e-05,2]
[356123829,1741924232481,-405.1928,9.9e-05,2]
[356123830,1741924232491,-151.7311,9.9e-05,2]
[356123831,1741924232501,-313.8925,9.9e-05,2]
[356123832,1741924232511,-3506.4695,9.9e-05,2]
[356123833,1741924232521,-2480.5102,9.9e-05,2]
[356123834,1741924232531,-371.896,9.9e-05,2]
[356123835,1741924232541,-1000.0,9.9e-05,2]
[356123836,1741924232551,-1000.0,9.9e-05,2]
[356123837,1741924232560,-36396.5371,9.9e-05,2]
[356123838,1741924232570,-2500.0,9.9e-05,2]
[356123839,1741924232580,-1454.24,9.999e-05,2]
[356123840,1741924232590,-1454.24,9.999e-05,2]
[356123841,1741924232600,-1454.24,9.999e-05,2]
[356123842,1741924232610,-1454.24,9.999e-05,2]
[356123843,1741924232619,-1454.24,9.999e-05,2]
[356123844,1741924232629,-1454.24,9.999e-05,2]
[356123845,1741924232639,-1454.24,9.999e-05,2]
[356123846,1741924232650,-1454.24,9.999e-05,2]
[356123847,1741924232660,-1454.24,9.999e-05,2]
[356123848,1741924232669,-1454.24,9.999e-05,2]
[356123849,1741924232679,-1454.24,9.999e-05,2]
[356123850,1741924232688,-1454.24,9.999e-05,2]
[356123851,1741924232698,-1454.24,9.999e-05,2]
[356123852,1741924232707,-1454.24,9.999e-05,2]
[356123853,1741924232717,-1454.24,9.999e-05,2]
[356123854,1741924232727,-1454.24,9.999e-05,2]
[356123855,1741924232736,-1454.24,9.999e-05,2]
[356123856,1741924232746,-1454.24,9.999e-05,2]
[356123857,1741924232755,-1454.24,9.999e-05,2]
[356123858,1741924232766,-1454.24,9.999e-05,2]
[356123859,1741924232775,-1454.24,9.999e-05,2]
[356123860,1741924232785,-1454.24,9.999e-05,2]
[356123861,1741924232795,-1454.24,9.999e-05,2]
[356123863,1741924232805,-1454.42847282,9.999e-05,2]
[356123865,1741924232814,-74530.27393137,0.0001,2]
[356123867,1741924232834,-1023.52500493,0.0001,2]
[356123869,1741924232845,-346.17549988,0.0001,2]
[356123877,1741924238058,-3600.0,0.0001,2]
[356123878,1741924238071,-4821.67992046,0.0001,2]
[356123879,1741924238114,-717.33266096,0.0001,2]
[356123880,1741924238178,-1322.96327026,0.0001,2]
[356123881,1741924238234,-2912.48,0.0001,2]
[356123882,1741924238246,-378.00513087,0.0001,2]
[356123883,1741924238289,-1144.63046961,0.0001,2]
[356123895,1741924240320,-1293.6026467,0.0001,2]
[356123896,1741924240332,-2592.4346909,0.0001,2]
[356123897,1741924240382,-2276.90767204,0.0001,2]
[356123898,1741924240438,-786.49262927,0.0001,2]
[356123899,1741924240548,-1714.05964372,0.0001,2]
[356123900,1741924240559,-1029.35693739,0.0001,2]
[356123901,1741924240606,-17223.46365979,0.0001,2]
[356123902,1741924240618,-413.15347707,0.0001,2]
[356123903,1741924240629,-8131.32319995,0.0001,2]
[356123904,1741924240662,-4000.39879996,0.0001,2]
[356123905,1741924240673,-566.48983397,0.0001,2]
[356123906,1741924240685,-4470.272925,0.0001,2]
[356123907,1741924240718,-452.363982,0.0001,2]
[356123935,1741924245779,-500.0,0.0001,2]
[356123936,1741924245790,-559.47986864,0.0001,2]
[356123996,1741924792725,175.13,9.574e-05,2]
[356123997,1741924863464,-223.195,9.8e-05,2]
[356123998,1741924863489,-650.2906,9.899e-05,2]
[356123999,1741924863514,-150.0,9.899e-05,2]
[356124000,1741924863538,-150.0,9.899e-05,2]
[356124001,1741924863564,-300.0,9.899e-05,2]
[356124002,1741924863589,-6163.3869,9.9e-05,2]
[356124003,1741924863616,-1000.0,9.9e-05,2]
[356124004,1741924863644,-66041.3349,9.9e-05,2]
[356124005,1741924863669,-36396.5371,9.9e-05,2]
[356124006,1741924863694,-4122.4925,9.9e-05,2]
[356124007,1741924863720,-2637.7365,9.9e-05,2]
[356124008,1741924863746,-2500.0,9.9e-05,2]
[356124009,1741924863773,-500.0,9.9e-05,2]
[356124010,1741924863798,-5003.263,9.9e-05,2]
[356124011,1741924863823,-1000.0,9.9e-05,2]
[356124012,1741924863849,-150.0,9.929e-05,2]
[356124013,1741924863874,-550.0,9.95e-05,2]
[356124014,1741924863907,-72461.7635,0.0001,2]
[356124015,1741924873914,-161.0,0.0001,3]
[356124017,1741925002549,-157.4221,9.8e-05,2]
[356124018,1741925002571,-150.0,9.899e-05,2]
[356124019,1741925002592,-192.5779,9.9e-05,2]
[356124021,1741925275023,282.0,0.0002,120]
[356124025,1741925432391,-4173.45432273,9.89e-05,2]
[356124026,1741925432450,-439.83347109,9.89e-05,2]
[356124027,1741925432508,-554.15636776,9.89e-05,2]
[356124028,1741925432621,-96.60586319,9.89e-05,2]
[356124029,1741925432631,-668.68413681,9.891e-05,2]
[356124030,1741925432678,-876.74586319,9.891e-05,2]
[356124031,1741925432688,-150.0,9.895e-05,2]
[356124032,1741925432697,-176.55255507,9.895e-05,2]
[356124033,1741925432707,-176.55255506,9.898e-05,2]
[356124034,1741925432716,-150.0,9.899e-05,2]
[356124035,1741925432725,-300.0,9.899e-05,2]
[356124036,1741925432735,-161.0,9.9e-05,3]
[356124037,1741925432745,-1793.54902669,9.9e-05,2]
[356124044,1741925438327,-1327.48358539,9.9e-05,2]
[356124045,1741925438501,-422.4,9.9e-05,2]
[356124046,1741925438554,-953.41309485,9.9e-05,2]
[356124047,1741925438610,-1025.56835964,9.9e-05,2]
[356124139,1741925440642,-3952.59656696,9.9e-05,2]
[356124140,1741925440681,-3284.44,9.9e-05,2]
[356124141,1741925440712,-2070.87096647,9.9e-05,2]
[356124142,1741925440722,-1000.0,9.9e-05,2]
[356124143,1741925440731,-372.04336877,9.9e-05,2]
[356124144,1741925440743,-2738.50755649,9.9e-05,2]
[356124145,1741925440754,-1127.84130903,9.9e-05,2]
[356124146,1741925440780,-8839.51775259,9.9e-05,2]
[356124147,1741925440792,-23318.62711312,9.9e-05,2]
[356124148,1741925440802,-2500.0,9.9e-05,2]
[356124149,1741925440813,-176.55255506,9.9e-05,2]
[356124150,1741925440822,-283084.20761054,0.0001,2]
[356124151,1741925440834,-1530.0,0.0001,2]
[356124286,1741925443564,-7676.03779352,0.0001,2]
[356124287,1741925443574,-198.0,0.0001,2]
[356124288,1741925443584,-199.81,0.0001,2]
[356124289,1741925443594,-215.98311682,0.00010006,2]
[356124290,1741925443604,-150.0,0.00010879,2]
[356124291,1741925443614,-150.0,0.00010879,2]
[356124292,1741925443624,-550.0,0.00010889,2]
[356124293,1741925443633,-255.0,0.00010889,2]
[356124294,1741925443643,-420.0,0.00010889,2]
[356124295,1741925443653,-550.0,0.0001089,2]
[356124296,1741925443663,-677.10633212,0.00011099,2]
[356124297,1741925443673,-391.16193533,0.00011099,2]
[356124298,1741925443682,-3755.50003463,0.00011244,2]
[356124299,1741925443692,-391.16193526,0.00011276,2]
[356124300,1741925443702,-150.0,0.00011923,7]
[356124301,1741925443712,-587.0,0.00011978,2]
[356124302,1741925443722,-2000.0,0.0001199,2]
[356124303,1741925443733,-23900.0,0.00012011,2]
[356124305,1741925443743,-831.1,0.00012148,2]
[356124307,1741925443752,-1545.43,0.00012155,2]
[356124309,1741925443762,-153.38,0.00012183,2]
[356124311,1741925443771,-196.84,0.00012213,2]
[356124312,1741925443781,-2000.0,0.00012251,2]
[356124314,1741925443791,-151.0,0.00012251,2]
[356124316,1741925443802,-151.0,0.00012251,2]
[356124318,1741925443811,-677.10633204,0.00012253,2]
[356124320,1741925443821,-200.0,0.00012281,2]
[356124322,1741925443830,-151.0,0.00012281,2]
[356124324,1741925443840,-151.0,0.00012281,2]
[356124325,1741925443849,-240.183048,0.00012281,2]
[356124327,1741925443859,-240.183048,0.00012281,2]
[356124328,1741925443869,-164.012193,0.00012281,2]
[356124330,1741925443878,-164.012193,0.00012281,2]
[356124332,1741925443888,-584.204,0.00012281,2]
[356124334,1741925443898,-584.204,0.00012281,2]
[356124336,1741925443908,-408.88332587,0.00012281,2]
[356124339,1741925443925,-175.32067413,0.00012281,2]
[356124341,1741925443934,-584.204,0.00012281,2]
[356124342,1741925443944,-584.204,0.00012281,2]
[356124344,1741925443953,-584.204,0.00012281,2]
[356124346,1741925443963,-431.85925402,0.00012281,2]
[356124348,1741925443975,-152.34474598,0.00012281,2]
[356124350,1741925443985,-584.204,0.00012281,2]
[356124352,1741925443995,-584.204,0.00012281,2]
[356124354,1741925444004,-584.204,0.00012281,2]
[356124356,1741925444014,-1271.0,0.000124,2]
[356124358,1741925444024,-1035.0,0.000124,2]
[356124360,1741925444034,-1157.0,0.000124,2]
[356124362,1741925444043,-1000.0,0.000124,2]
[356124364,1741925444053,-848.68593714,0.000124,2]
[356124475,1741925445721,-151.31406286,0.000124,2]
[356124476,1741925445731,-151.0,0.00012419,2]
[356124477,1741925445740,-98.68593714,0.00012419,2]
[356124478,1741925446397,-813.75609051,0.00012128,2]
[356124482,1741926015205,226.10336447,0.0002,120]
[356124483,1741926078625,201.4,9e-05,2]
[356124503,1741926631750,-1000.0,9.9e-05,2]
[356124504,1741926631760,-792.8721,9.9e-05,2]
[356124505,1741926631769,-600.0,9.9e-05,3]
[356124506,1741926631779,-501.16614408,9.973e-05,2]
[356124507,1741926631790,-300.0,9.998e-05,2]
[356124508,1741926631803,-150.0,9.999e-05,2]
[356124509,1741926631812,-500.0,9.999e-05,2]
[356124510,1741926631822,-167.60247637,9.999e-05,2]
[356124511,1741926631831,-500.0,9.999e-05,2]
[356124512,1741926631841,-500.0,9.999e-05,2]
[356124513,1741926631850,-500.0,9.999e-05,2]
[356124514,1741926631859,-411.97156954,9.999e-05,2]
[356124515,1741926631869,-500.0,9.999e-05,2]
[356124516,1741926631878,-500.0,9.999e-05,2]
[356124517,1741926631887,-441.06455124,9.999e-05,2]
[356124518,1741926631897,-1592.52315877,0.0001,2]
[356124519,1741926631908,-386.00000001,0.0001,2]
[356124520,1741926631923,-28011.62403996,0.0001,2]
[356124521,1741926631935,-12949.94158091,0.0001,2]
[356124522,1741926632006,-3726.0,0.0001,2]
[356124523,1741926632018,-4292.02410901,0.0001,2]
[356124524,1741926637484,-802.56208542,0.0001,2]
[356124525,1741926637496,-1054.27225137,0.0001,2]
[356124526,1741926637542,-750.863,0.0001,2]
[356124527,1741926637554,-974.16207443,0.0001,2]
[356124528,1741926637599,-574.64045459,0.0001,2]
[356124529,1741926637610,-300.32,0.0001,2]
[356124530,1741926637621,-589.81966511,0.0001,2]
[356124533,1741926639863,-296413.67184554,0.0001,2]
[356124534,1741926639875,-41626.79191419,0.0001,2]
[356124535,1741926639975,-2991.1802949,0.0001,2]
[356124536,1741926640093,-344.65437435,0.0001,2]
[356124537,1741926640104,-949.35000002,0.0001,2]
[356124549,1741926642626,-3507.196489,0.0001,2]
[356124553,1741926645570,-533.59496,0.0001,2]
[356124554,1741926645624,-783.45079787,0.0001,2]
[356124555,1741926645788,-2398.11690363,0.0001,2]
[356124556,1741926645898,-4064.83,0.0001,2]
[356124561,1741926995228,339.0,0.00020011,120]
[356124562,1741927332100,426.85,0.00020011,120]
[356124566,1741927831721,-5124.33,9.8e-05,2]
[356124567,1741927831730,-186.623,9.8e-05,2]
[356124568,1741927831739,-240.95640148,9.973e-05,2]
[356124569,1741927831749,-5118.85295034,9.99e-05,2]
[356124570,1741927831759,-150.0,9.999e-05,2]
[356124571,1741927831768,-12045.46137215,0.0001,2]
[356124572,1741927831779,-5188.85335184,0.0001,2]
[356124573,1741927831790,-4631.89421095,0.0001,2]
[356124574,1741927831812,-5999.93323366,0.0001,2]
[356124575,1741927831823,-2033.399527,0.0001,2]
[356124576,1741927831834,-1050.11323801,0.0001,2]
[356124577,1741927831845,-18585.25772274,0.0001,2]
[356124578,1741927831856,-296.06898983,0.0001,2]
[356124579,1741927831867,-1434.24613958,0.0001,2]
[356124580,1741927831878,-955.26651906,0.0001,2]
[356124581,1741927831896,-959.22539832,0.0001,2]
[356124582,1741927831943,-4899.0386758,0.0001,2]
[356124583,1741927831955,-417.54549253,0.0001,2]
[356124584,1741927831966,-6589.07,0.0001,2]
[356124585,1741927831977,-3071.705,0.0001,2]
[356124586,1741927831988,-575.10458265,0.0001,2]
[356124587,1741927832002,-322.26793109,0.0001,2]
[356124588,1741927832013,-531.053597,0.0001,2]
[356124589,1741927832024,-15617.28,0.0001,2]
[356124590,1741927832121,-718.78087629,0.0001,2]
[356124607,1741927837708,-5463.36885183,0.0001,2]
[356124609,1741927837719,-503.01173433,0.0001,2]
[356124610,1741927837818,-2814.15464849,0.0001,2]
[356124611,1741927837874,-8519.11979,0.0001,2]
[356124612,1741927837983,-3779.0,0.0001,2]
[356124621,1741927839911,-500.89720672,0.0001,2]
[356124622,1741927840076,-2342.47585922,0.0001,2]
[356124636,1741927844527,-41061.69632877,0.0001,2]
[356124639,1741927845949,-2976.63055095,0.0001,2]
[356124640,1741927845960,-515.82099314,0.0001,2]
[356124641,1741927846005,-267.57959995,0.0001,2]
[356124647,1741928860912,250.0,9.485e-05,2]
[356124651,1741929032136,-3443.49879333,9.8e-05,2]
[356124652,1741929032148,-839.61920667,9.8e-05,2]
[356124653,1741929032157,-186.623,9.8e-05,2]
[356124654,1741929032166,-150.0,9.999e-05,2]
[356124655,1741929032176,-468.04538168,9.999e-05,2]
[356124656,1741929032185,-404954.67892235,0.0001,2]
[356124657,1741929032196,-835.85692776,0.0001,2]
[356124658,1741929032306,-988.468,0.0001,2]
[356124692,1741929037868,-804.32,0.0001,2]
[356124693,1741929037959,-12893.8938511,0.0001,2]
[356124694,1741929037971,-773.97421782,0.0001,2]
[356124695,1741929038019,-20780.54390345,0.0001,2]
[356124696,1741929038030,-401.616215,0.0001,2]
[356124697,1741929038041,-1529.14655895,0.0001,2]
[356124698,1741929038077,-8155.7,0.0001,2]
[356124699,1741929038088,-358.1318956,0.0001,2]
[356124710,1741929040249,-425.33046105,0.0001,2]
[356124711,1741929040308,-1759.8369796,0.0001,2]
[356124712,1741929040365,-12210.74810465,0.0001,2]
[356124713,1741929040377,-3419.99457149,0.0001,2]
[356124714,1741929040475,-310.5,0.0001,2]
[356124729,1741929043082,-793.62008107,0.0001,2]
[356124730,1741929043093,-1343.0,0.0001,2]
[356124731,1741929043278,-15196.0458,0.0001,2]
[356124732,1741929043542,-381.93629113,0.0001,2]
[356124733,1741929045150,-500.0,0.0001,2]
[356124734,1741929046053,-1695.91769225,0.0001,2]
[356124735,1741929046065,-1335.13499975,0.0001,2]
[356124736,1741929046117,-4040.11477997,0.0001,2]
[356124737,1741929046128,-520.45800274,0.0001,2]
[356124738,1741929046228,-2292.72086,0.0001,2]
[356124743,1741929175350,-150.0,9.999e-05,2]
[356124744,1741929182367,-150.0,9.999e-05,2]
[356124745,1741929182389,-66.94516499,9.999e-05,2]
[356124749,1741929219882,-193.91192058,9.999e-05,2]
[356124750,1741929219908,-56.08807942,0.0001,2]
[356124751,1741929224271,-198.69244979,9.99e-05,2]
[356124753,1741929240639,-4.24755021,9.99e-05,2]
[356124754,1741929240669,-245.75244979,0.0001,2]
[356124755,1741929242600,-245.75244979,0.0001,2]
[356124756,1741929244188,-201.0,9.999e-05,2]
[356124757,1741929244219,-99.0,0.0001,2]
[356124761,1741929257289,-250.0,0.0001,2]
[356124762,1741929261987,-164.45,0.0001,2]
[356124763,1741929266870,-150.0,0.0001,2]
[356124764,1741929272332,-150.0,0.0001,2]
[356124766,1741929301740,-164.45,0.0001,2]
[356124767,1741929307160,-150.0,9.999e-05,2]
[356124768,1741929307188,-87.13682247,0.0001,2]
[356124769,1741929309945,-150.0,0.0001,2]
[356124770,1741929352455,-300.0,0.0001,2]
[356124771,1741929355734,-300.0,0.0001,2]
[356124772,1741929359358,-266.84065786,0.0001,2]
[356124773,1741929360024,-266.84065786,0.0001,2]
[356124774,1741929364679,-162.28401461,0.0001,2]
[356124775,1741929401441,-339.64102603,0.0001,2]
[356124776,1741929422269,-300.0,9.999e-05,2]
[356124777,1741929545474,-176101.0,0.0001,2]
[356124778,1741929548053,-196.34065786,0.0001,2]
[356124779,1741929550783,-100000.0,0.0001,2]
[356124780,1741929551500,-65243.43721711,0.0001,2]
[356124781,1741929551523,-600.0,0.0001,3]
[356124782,1741929551544,-199.0,0.0001,2]
[356124783,1741929551566,-200.0,0.0001,3]
[356124784,1741929551588,-202.08,0.0001,2]
[356124785,1741929551609,-12979.12,0.0001,2]
[356124786,1741929551630,-161.0,0.0001,3]
[356124787,1741929551652,-1000.0,0.0001,2]
[356124788,1741929551674,-1000.0,0.0001,2]
[356124789,1741929551695,-1000.0,0.0001,2]
[356124790,1741929551716,-1000.0,0.0001,2]
[356124791,1741929551737,-1000.0,0.0001,2]
[356124792,1741929551758,-1000.0,0.0001,2]
[356124793,1741929551779,-1000.0,0.0001,2]
[356124794,1741929551800,-1000.0,0.0001,2]
[356124795,1741929551820,-1000.0,0.0001,2]
[356124796,1741929551841,-1000.0,0.0001,2]
[356124797,1741929551862,-1000.0,0.0001,2]
[356124798,1741929551887,-1000.0,0.0001,2]
[356124799,1741929551908,-1000.0,0.0001,2]
[356124800,1741929551930,-1000.0,0.0001,2]
[356124801,1741929551951,-1000.0,0.0001,2]
[356124802,1741929551972,-1000.0,0.0001,2]
[356124803,1741929551992,-1000.0,0.0001,2]
[356124804,1741929552013,-1000.0,0.0001,2]
[356124805,1741929552034,-1000.0,0.0001,2]
[356124806,1741929552055,-1000.0,0.0001,2]
[356124807,1741929552076,-415.36278289,0.0001,2]
[356124808,1741929552965,-205.73,0.0001,2]
[356124809,1741929579931,-151.06,0.0001,2]
[356124810,1741929585451,-150.0,0.0001,2]
[356124811,1741929603030,-150.0,9.999e-05,2]
[356124812,1741929611282,-150.0,9.999e-05,2]
[356124813,1741929611308,-29.8538691,0.0001,2]
[356124814,1741929616500,-47.99334801,0.0001,2]
[356124815,1741929616525,-171.09278289,0.0001,2]
[356124816,1741929624869,-346.36919943,0.0001,2]
[356124817,1741929661290,-150.0,0.0001,2]
[356124818,1741929713586,-35.39426025,0.0001,2]
[356124819,1741929713609,-114.60573975,0.0001,2]
[356124820,1741929723078,-84.39426025,0.0001,2]
[356124821,1741929723101,-65.60573975,0.0001,2]
[356124850,1741930232243,-600.0,9.8e-05,3]
[356124851,1741930232253,-1200.0,9.9e-05,3]
[356124852,1741930232263,-150.0,9.999e-05,2]
[356124853,1741930232276,-178.85581716,9.999e-05,2]
[356124854,1741930232287,-295.8863822,9.999e-05,2]
[356124855,1741930232364,-204.1136178,9.999e-05,2]
[356124856,1741930232373,-500.0,9.999e-05,2]
[356124857,1741930232382,-500.0,9.999e-05,2]
[356124858,1741930232392,-500.0,9.999e-05,2]
[356124859,1741930232401,-500.0,9.999e-05,2]
[356124860,1741930232411,-500.0,9.999e-05,2]
[356124861,1741930232420,-584.2111063,9.999e-05,2]
[356124862,1741930232429,-1679.6620139,0.0001,2]
[356124863,1741930232439,-1748215.38488064,0.0001,2]
[356124864,1741930232451,-25430.0,0.0001,2]
[356124865,1741930232462,-6099.9999999,0.0001,2]
[356124866,1741930232474,-5880.0,0.0001,2]
[356124867,1741930232485,-3550.000005,0.0001,2]
[356124868,1741930232496,-1300.0,0.0001,2]
[356124870,1741930232753,-0.87109187,0.0001,2]
[356124910,1741930240420,-1720.02418903,0.0001,2]
[356124912,1741930240773,-15606.79,0.0001,2]
[356124920,1741930243193,-7044.99204275,0.0001,2]
[356124921,1741930243358,-9598.2338058,0.0001,2]
[356124922,1741930243370,-13167.52550743,0.0001,2]
[356124923,1741930245091,-299.24,0.0001,2]
[356124929,1741930246386,-8542.42020715,0.0001,2]
[356124930,1741930246445,-8201.5,0.0001,2]
[356124939,1741930248923,-150.0,0.0001,2]
[356124940,1741930250711,-290.42254486,9.999e-05,2]
[356124941,1741930261997,-300.0,9.999e-05,2]
[356124942,1741930265823,-209.57745514,9.999e-05,2]
[356124943,1741930265853,-6.081887,9.999e-05,2]
[356124944,1741930267532,-150.0,9.999e-05,2]
[356124945,1741930268569,-150.0,9.999e-05,2]
[356124946,1741930272076,-192.96755021,9.999e-05,2]
[356124947,1741930278394,-500.0,9.999e-05,2]
[356124948,1741930294219,-367.28,9.999e-05,2]
[356124949,1741930309570,-132.72,9.999e-05,2]
[356124950,1741930309594,-10.31115394,9.999e-05,2]
[356124951,1741930309616,-156.96884606,9.999e-05,2]
[356124952,1741930316606,-191.47934214,9.999e-05,2]
[356124953,1741930323571,-300.0,9.999e-05,2]
[356124954,1741930344879,-250.0,9.9e-05,2]
[356124955,1741930360129,-175.5,9.9e-05,2]
[356124956,1741930381128,-150.0,9.9e-05,2]
[356124957,1741930385254,-421.0,9.9e-05,2]
[356124958,1741930390245,-271.97,9.9e-05,2]
[356124959,1741930405089,-150.0,9.9e-05,2]
[356124960,1741930514182,-158.0,9.9e-05,3]
[356124961,1741930514206,-27.97,9.9e-05,2]
[356124974,1741931034850,-203.04429329,9.808e-05,2]
[356124975,1741931034873,-1.60020802,9.9e-05,2]
[356124976,1741931042989,-250.0,9.9e-05,2]
[356124985,1741931432495,-184.57711795,9.9e-05,2]
[356124986,1741931432509,-665.92027454,9.913e-05,2]
[356124987,1741931432610,-1008.76972546,9.913e-05,2]
[356124988,1741931432619,-150.0,9.973e-05,2]
[356124989,1741931432630,-217.77360996,9.973e-05,2]
[356124990,1741931432639,-150.0,9.999e-05,2]
[356124991,1741931432648,-90157.21041766,0.0001,2]
[356124992,1741931432657,-1259.7465104,0.0001,2]
[356124993,1741931432666,-217.77360995,0.0001,2]
[356124994,1741931432675,-189.0,0.0001,3]
[356124995,1741931432685,-421.0,0.00010055,2]
[356124996,1741931432694,-508.0,0.00010219,2]
[356124997,1741931432703,-190.78624803,0.00010448,2]
[356124998,1741931432713,-7884.4280376,0.00010462,2]
[356124999,1741931432722,-752.0,0.000108,2]
[356125000,1741931432731,-150.0,0.0001089,2]
[356125001,1741931432741,-150.0,0.0001089,2]
[356125002,1741931432751,-150.0,0.0001089,2]
[356125003,1741931432760,-168.0,0.00010999,2]
[356125004,1741931432769,-8156.73961344,0.00011,2]
[356125005,1741931432778,-550.0,0.00011,2]
[356125006,1741931432788,-163.76,0.0001113,2]
[356125007,1741931432797,-150.99,0.00011281,2]
[356125008,1741931432807,-1720.58,0.00011281,2]
[356125009,1741931432817,-6249.22,0.00011281,2]
[356125010,1741931432826,-299.99,0.00011281,2]
[356125011,1741931432836,-3622.93,0.00011281,2]
[356125012,1741931432846,-999.99,0.00011281,2]
[356125013,1741931432855,-397.06,0.00011281,2]
[356125014,1741931432864,-20038.47,0.00011281,2]
[356125015,1741931432873,-1500.0,0.00011303,2]
[356125016,1741931432882,-164.07,0.00011314,2]
[356125017,1741931432892,-343.01,0.00011341,2]
[356125018,1741931432901,-2737.90401074,0.00011353,2]
[356125019,1741931432910,-200.0,0.00011354,2]
[356125020,1741931432920,-1162.42,0.00011412,2]
[356125021,1741931432929,-4085.79,0.00011428,2]
[356125022,1741931432938,-918.24,0.00011432,2]
[356125023,1741931432948,-781.21,0.00011446,2]
[356125024,1741931432958,-300.0,0.00011475,2]
[356125025,1741931432967,-311.57,0.00011478,2]
[356125026,1741931432976,-475.29051218,0.00011482,2]